Workbook

Sheet Tytułowa
K1: Załącznik nr 1 do wniosku o przyznanie pomocy
O3: W-1.1_413_312
D5: AGENCJA RESTRUKTURYZACJI I MODERNIZACJI ROLNICTWA
B17: Ekonomiczny Plan Operacji
B22: Załącznik do wniosku o przyznanie pomocy w ramach działania 413 "Wdrażanie lokalnych strategii rozwoju" dla operacji, które odpowiadają warunkom pomocy w ramach działania 312 "Tworzenie i rozwój mikroprzedsiębiorstw" w ramach Programu Rozwoju Obszarów Wiejskich na lata 2007 - 2013
B30: znak sprawy (wypełnia pracownik OR)
C34: Nr Identyfikacyjny Wnioskodawcy
C40: Imię i Nazwisko/Nazwa *
C43: Ekonomiczny plan operacji sporządzony zostać powinien według wzoru udostępnionego przez Agencję Restrukturyzacji i Modernizacji Rolnictwa. Przed wypełnieniem formularza należy zapoznać się z wytycznymi zawartymi w instrukcji wypełniania ekonomicznego planu operacji.
C49: * Imię i Nazwisko w przypadku osób fizycznych

Sheet Sekcja A
AA1: 10
AA2: 10
AA3: 1
B4: SEKCJA A. CHARAKTERYSTYKA RODZAJU DZIAŁALNOŚCI
B5: A-1. Charakterystyka działalności przedsiębiorstwa
B6: 1. Data rejestracji przedsiębiorcy(miesiąc/rok)
L8: 1.1. Miesiąc | R8: 1.2. Rok
B9: 2. Przedmiot działalności wg kodu PKD | J9: Kod PKD | N9: Opis kodu PKD

Sheet Sekcja B1 i B2
AA1: 20 | AB1: 25 | AC1: 30
AA2: 23 | AB2: 28 | AC2: 34
B3: SEKCJA B. CHARAKTERYSTYKA DOTYCHCZASOWEJ DZIAŁALNOŚCI * | AA3: 1 | AB3: 1 | AC3: 1
B6: B-1. Opis dotychczasowej działalności (Charakterystyka prowadzonej działalności, maksymalnie 500 słów)
B17: B-2. Posiadane zaplecze do prowadzenia działalności gospodarczej
B18: Charakterystyka istniejących nieruchomości | F18: Rodzaj nieruchomości | L18: Powierzchnia/Kubatura | N18: Posiadanie zależne | P18: Rok budowy | R18: Stan techniczny | T18: Zaplecze planowanej operacji
F19: Grunty | L19: ha fizyczne | N19: x | P19: x | R19: x | U19: x
P20: x | R20: x
P21: x | R21: x
P22: x | R22: x
P23: x | R23: x
F24: Budynki/budowle | L24: m2/m3 | N24: x | P24: x | R24: x | U24: x
B29: Posiadane maszyny/urządzenia/pojazdy/Inne | F29: Nazwa i typ maszyny/urządzenia/pojazdu | N29: Posiadanie zależne | P29: Rok produkcji | R29: Stan techniczny | U29: Zaplecze planowanej operacji
B36: * Wnioskodawcy rozpoczynający działalność gospodarczą nie wypełniają tabel B-1, B-3 i B-4, wypełniają natomiast tabelę B-2, wg stanu na dzień sporządzania planu operacji. Pozostali wnioskodawcy wypełniają wszystkie punkty tej sekcji, z tym że wnioskodawcy kontynuujący działalność rozpoczętą w roku bieżącym, w tabeli B-4 podają wartości za niepełny rok prowadzenia działalności.

Sheet Sekcja B3 i B4
AA1: 5
AA2: 10
B3: B-3. Skala produkcji / świadczonych usług/sprzedaży towarów | AA3: 1
B4: Lp. | C4: Produkt / usługa/towar | Q4: Jednostka | T4: Wiekość produkcji / świadczonych usług/sprzedaży towarów
B5: 1
B6: 2
B7: 3
B8: 4
B9: 5
B10: 6
B12: B-4. Wynik finansowy z działalności dotychczasowej
B13: Wyszczególnienie | O13: Rok poprzedni | T13: Rok bieżący
O14: =T14-1 -> 2012 | T14: 2013
B15: I. PRZYCHODY | G15: 1. Wpływy ze sprzedaży produktów/świadczonych usług/sprzedaży towarów
G16: 2. Pozostałe przychody
G17: Razem | O17: =O15+O16 -> 0 | T17: =T15+T16 -> 0
B18: II. KOSZTY | G18: 1. Koszty rodzajowe, w tym | O18: =SUM(O19,O20,O21,O22,O23,O24,O25,O26,O27,O28,O29) -> 0 | T18: =SUM(T19,T20,T21,T22,T23,T24,T25,T26,T27,T28,T29) -> 0
G19: a. Amortyzacja
G20: b.Zużycie materiałów/surowców
G21: c. Paliwo
G22: d.Usługi obce (w tym m.in. naprawy i konserwacje maszyn, budynków, energia el., opał, gaz, woda, ścieki, odpady, telekomunikacja)
G23: e.Podatki i opłaty, w tym podatek akcyzowy
G24: f. Zakup towarów
G25: g.Wynagrodzenia
G26: h. Ubezpieczenia społeczne i inne świadczenia
G27: i.Dzierżawy, czynsze i opłaty leasingowe
G28: j.Ubezpieczenia majątkowe
G29: k. Pozostałe koszty rodzajowe
G30: Razem | O30: =SUM(O19:S29) -> 0 | T30: =SUM(T19:X29) -> 0
B31: III. ZYSK BRUTTO (I-II) | O31: =O17-O18 -> 0 | T31: =T17-T18 -> 0
B32: IV. PODATEK DOCHODOWY
B33: V. ZYSK NETTO (III-IV) | O33: =O31-O32 -> 0 | T33: =T31-T32 -> 0

Sheet Sekcja C1
B3: SEKCJA C. PLANOWANA OPERACJA
B5: C-1. Charakterystyka planowanej operacji
B6: 1. Tytuł i opis operacji (maksymalnie 500 słów)
B7: 2. Planowana operacja dotycząca działalności *
N8: 2.1. Rozwijanej
N10: 2.2. Podejmowanej
B12: 3. Przedmiot działalności wg kodu PKD | K12: Kod PKD | O12: Opis kodu PKD
B17: 4. Lokalizacja (miejsce realizacji) operacji
L19: 5.1. Ulica i nr domu (posesji)
L21: 5.2. Miejscowość
L23: 5.3. Kod pocztowy | P23: 5.4. Poczta | T23: 5.5. Gmina
L25: 5.6. Powiat | S25: 5.7. Województwo
B29: * należy określić poprzez wstawienie "x" w jednym właściwym polu, jakiej działalności dotyczy planowana operacja.

Sheet Sekcja C2 i C3
C7: C-2. Opis operacji
C8: C.2.1. Organizacja działaności produkcyjnej/usługowej/handlowej
C10: C.2.2. Inne uwarunkowania realizacji operacji
C12: C-3. Plan marketingowy
C13: C.3.1. Charakterystyka cech produktów/usług/towarów objętych operacją
C15: C.3.2. Czy i w jakim stopniu wprowadzone produkty/usługi/towary są czymś nowym dla danego obszaru/sektora ?
C17: C.3.3. Rodzaj rynku zbytu produktów/świadczonych usług/towarów, czy podpisano umowy/kontrakty z przyszłymi odbiorcami produktów/usług/towarów
C19: C.3.4. Sposób wyznaczania ceny dla produktów/usług/towarów

Sheet Sekcja C4
AE1: 6 | AF1: 19
B2: C-4 Wielkość i wartość planowanej produkcji | AE2: 10 | AF2: 23
B3: C.4.1. Prognoza wielkości i wartości produkcji/świadczonych usług/sprzedaży towarów | AE3: 2 | AF3: 2
B4: Lp. | C4: Produkt/Usługa/Towar | J4: Jednostka | K4: ='Sekcja B3 i B4'!T14 -> 2013 | Q4: =K4+1 -> 2014 | W4: =Q4+1 -> 2015
K5: Ilość | M5: Cena netto | O5: Wartość w cenach netto | Q5: Ilość | S5: Cena netto | U5: Wartość w cenach netto | W5: Ilość | Y5: Cena netto | AA5: Wartość w cenach netto
B6: 1 | O6: =ROUND(K6*M6,2) -> 0 | U6: =ROUND(Q6*S6,2) -> 0 | AA6: =ROUND(W6*Y6,2) -> 0
B7: 2 | O7: =ROUND(K7*M7,2) -> 0 | U7: =ROUND(Q7*S7,2) -> 0 | AA7: =ROUND(W7*Y7,2) -> 0
B8: 3 | O8: =ROUND(K8*M8,2) -> 0 | U8: =ROUND(Q8*S8,2) -> 0 | AA8: =ROUND(W8*Y8,2) -> 0
B9: 4 | O9: =ROUND(K9*M9,2) -> 0 | U9: =ROUND(Q9*S9,2) -> 0 | AA9: =ROUND(W9*Y9,2) -> 0
B10: 5 | O10: =ROUND(K10*M10,2) -> 0 | U10: =ROUND(Q10*S10,2) -> 0 | AA10: =ROUND(W10*Y10,2) -> 0
B11: Razem | J11: X | K11: X | M11: X | O11: =SUM(O6:P10) -> 0 | Q11: X | S11: X | U11: =SUM(U6:V10) -> 0 | W11: X | Y11: X | AA11: =SUM(AA6:AB10) -> 0
B16: C.4.1. Prognoza wielkości i wartości produkcji/świadczonych usług/sprzedaży towarów cd.
B17: Lp. | C17: Produkt/Usługa/Towar | J17: Jednostka | K17: =W4+1 -> 2016 | Q17: =K17+1 -> 2017 | W17: =Q17+1 -> 2018
K18: Ilość | M18: Cena netto | O18: Wartość w cenach netto | Q18: Ilość | S18: Cena netto | U18: Wartość w cenach netto | W18: Ilość | Y18: Cena netto | AA18: Wartość w cenach netto
B19: 1 | O19: =ROUND(K19*M19,2) -> 0 | U19: =ROUND(Q19*S19,2) -> 0 | AA19: =ROUND(W19*Y19,2) -> 0
B20: 2 | O20: =ROUND(K20*M20,2) -> 0 | U20: =ROUND(Q20*S20,2) -> 0 | AA20: =ROUND(W20*Y20,2) -> 0
B21: 3 | O21: =ROUND(K21*M21,2) -> 0 | U21: =ROUND(Q21*S21,2) -> 0 | AA21: =ROUND(W21*Y21,2) -> 0
B22: 4 | O22: =ROUND(K22*M22,2) -> 0 | U22: =ROUND(Q22*S22,2) -> 0 | AA22: =ROUND(W22*Y22,2) -> 0
B23: 5 | O23: =ROUND(K23*M23,2) -> 0 | U23: =ROUND(Q23*S23,2) -> 0 | AA23: =ROUND(W23*Y23,2) -> 0
B24: Razem | J24: X | K24: X | M24: X | O24: =SUM(O19:P23) -> 0 | Q24: X | S24: X | U24: =SUM(U19:V23) -> 0 | W24: X | Y24: X | AA24: =SUM(AA19:AB23) -> 0
B27: C.4.2. Uzasadnienie planowanej wielkości produkcji/świadczonych usług/sprzedaży towarów (np. według wydajności maszyny/urządzenia, z uwzględnieniem ewentualnej wielozmianowości produkcji, dostępności surowców, na podstawie umów/kontraktów etc.)

Sheet Sekcja C5
AF1: 14 | AG1: 22 | AO1: 6 | AP1: 14 | AQ1: 20
AO2: 10 | AP2: 16 | AQ2: 22
B3: C-5 Koszty operacji | AO3: 2 | AP3: 2 | AQ3: 2
B4: Pozycja zestawienia | C4: Koszty inwestycyjne nie objęte leasingiem (Ki) | R4: Wartość PLN* | W4: Planowany rok poniesienia kosztu
W5: ='Sekcja C4'!K4 -> 2013 | X5: ='Sekcja C4'!Q4 -> 2014 | Y5: ='Sekcja C4'!W4 -> 2015 | Z5: ='Sekcja C4'!K17 -> 2016 | AA5: ='Sekcja C4'!Q17 -> 2017 | AB5: ='Sekcja C4'!W17 -> 2018 | AG5: lata amortyzacji | AH5: =IF(TYPE(W5)=1,W5-$W$5+1,0) -> 1 | AI5: 2 | AJ5: 3 | AK5: 4 | AL5: 5 | AM5: 6
R6: =SUM(W6:AB6) -> 0 | AG6: kwota inwestycji | AH6: =IF(AH5>0,W24-W23,0) -> 0 | AI6: 0 | AJ6: 0 | AK6: 0 | AL6: 0 | AM6: 0
R7: =SUM(W7:AB7) -> 0 | AG7: kwota amortyzacji | AH7: =IF(#REF!>0,#REF!*#REF!*8%,0) ->  | AI7: =IF(#REF!>0,#REF!*#REF!*8%,0) ->  | AJ7: =IF(#REF!>0,#REF!*#REF!*8%,0) ->  | AK7: =IF(#REF!>0,#REF!*#REF!*8%,0) ->  | AL7: =IF(#REF!>0,#REF!*#REF!*8%,0) ->  | AM7: =IF(#REF!>0,#REF!*#REF!*8%,0) -> 
R8: =SUM(W8:AB8) -> 0 | AG8: kwota amortyzacji | AH8: =IF(#REF!>0,#REF!*#REF!*8%,0) ->  | AI8: =IF(#REF!>0,#REF!*#REF!*8%,0) ->  | AJ8: =IF(#REF!>0,#REF!*#REF!*8%,0) ->  | AK8: =IF(#REF!>0,#REF!*#REF!*8%,0) ->  | AL8: =IF(#REF!>0,#REF!*#REF!*8%,0) ->  | AM8: =IF(#REF!>0,#REF!*#REF!*8%,0) -> 
R9: =SUM(W9:AB9) -> 0 | AG9: kwota amortyzacji | AH9: =IF(#REF!>0,#REF!*#REF!*8%,0) ->  | AI9: =IF(#REF!>0,#REF!*#REF!*8%,0) ->  | AJ9: =IF(#REF!>0,#REF!*#REF!*8%,0) ->  | AK9: =IF(#REF!>0,#REF!*#REF!*8%,0) ->  | AL9: =IF(#REF!>0,#REF!*#REF!*8%,0) ->  | AM9: =IF(#REF!>0,#REF!*#REF!*8%,0) -> 
R10: =SUM(W10:AB10) -> 0 | AG10: kwota amortyzacji | AH10: =IF(#REF!>0,#REF!*#REF!*8%,0) ->  | AI10: =IF(#REF!>0,#REF!*#REF!*8%,0) ->  | AJ10: =IF(#REF!>0,#REF!*#REF!*8%,0) ->  | AK10: =IF(#REF!>0,#REF!*#REF!*8%,0) ->  | AL10: =IF(#REF!>0,#REF!*#REF!*8%,0) ->  | AM10: =IF(#REF!>0,#REF!*#REF!*8%,0) -> 
B11: Razem | R11: =SUM(R6:U10) -> 0 | W11: =SUM(W6:W10) -> 0 | X11: 0 | Y11: 0 | Z11: 0 | AA11: 0 | AB11: 0
B12: Pozycja zestawienia | C12: Koszty inwestycyjne objęte leasingiem (Kl)
R14: =SUM(W14:AB14) -> 0
R15: =SUM(W15:AB15) -> 0
R16: =SUM(W16:AB16) -> 0
B17: Razem | R17: =SUM(R14:U16) -> 0 | W17: =SUM(W14:W16) -> 0 | X17: 0 | Y17: 0 | Z17: 0 | AA17: 0 | AB17: 0
B18: Pozycja zestawienia | C18: Koszty ogólne (Ko)
R20: =SUM(W20,X20,Y20,Z20,AB20) -> 0
R21: =SUM(W21,X21,Y21,Z21,AB21) -> 0
R22: =SUM(W22,X22,Y22,Z22,AB22) -> 0
B23: Razem | R23: =SUM(R20:U22) -> 0 | W23: =SUM(W20:W22) -> 0 | X23: 0 | Y23: 0 | Z23: 0 | AA23: 0 | AB23: 0
B24: Suma kosztów kwalifikowalnych operacji (Ki+Kl+Ko) | R24: =SUM(R23,R17,R11) -> 0 | W24: =SUM(W11+W17+W23) -> 0 | X24: 0 | Y24: 0 | Z24: 0 | AA24: 0 | AB24: 0
B27: * w wartościach netto (bez VAT), zgodnie z zestawieniem rzeczowo-finansowym operacji

Sheet Sekcja C6
P1: 8 | IV1: 2013
B2: C-6. Zakres rzeczowy operacji. | P2: 10 | R2: 20 | IV2: 2014
B3: C-6.1. Wpływ poszczególnych elementów zakresu rzeczowego operacji na zakładany poziom sprzedaży, zatrudnienia i cele operacji | P3: 2 | IV3: 2015
IV4: 2016
B5: C-6.2. Zestawienie zakresu rzeczowego operacji (opis zadań) | IV5: 2017
B6: Pozycja zestawienia | C6: Nazwa dostawcy | D6: Marka, typ lub rodzaj | E6: Parametry techniczne (moc, wydajność itp.) | F6: Planowany rok poniesienia kosztu | H6: Wartość zadania [wybranej oferty netto w (zł)] | IV6: 2018
B11: RAZEM | H11: =SUM(H8:I10) -> 0
B12: C-6.3. Uzasadnienie wyboru oferty
B15: C-6.4. Zestawienie zakresu towarzyszącego operacji - koszty niekwalifikowalne
B16: Lp | C16: Nazwa zadania | E16: Parametry techniczne (m2, m3, moc, wydajność itp.) | F16: Planowany rok poniesienia kosztu | H16: Wartość zadania [kwota netto w (zł)]
F18: 2013
F19: 2013
F20: 2013
B21: RAZEM | H21: =SUM(H18:I20) -> 0

Sheet Sekcja C7
B2: C-7. Projekcja finansowa
B3: C-7.1 Żródła finansowania operacji | I3: Kwota brutto | L3: Struktura %
B4: 1. Kredyty, pożyczki | I4: ='Sekcja C7.2 i C7.3'!K11 -> 0 | L4: =IF(I11>0,I4/$I$11,0) -> 0
B6: 2. Środki własne, w tym
C7: a. Gotówka na rachunku bankowym | I7: 0 | L7: =IF(I11>0,I7/$I$11,0) -> 0
C8: b. Lokaty terminowe i papiery wartościowe | I8: 0 | L8: =IF(I11>0,I8/$I$11,0) -> 0
C9: c. Planowane nadwyżki finansowe w okresie realizacji inwestycji pochodzące z bieżącej działalności gospodarczej | I9: 0 | L9: =IF(I11>0,I9/$I$11,0) -> 0
B10: 3. Leasing | I10: ='Sekcja C7.2 i C7.3'!N31 -> 0 | L10: =IF(I11>0,I10/$I$11,0) -> 0
B11: Razem | I11: =SUM(I4:K10) -> 0 | L11: 1

Sheet Sekcja C7.2 i C7.3
T1: 9 | U1: 16 | V1: 29 | W1: 36
T2: 10 | U2: 17 | V2: 30 | W2: 37
B3: C-7.2 Środki obce | T3: 2 | U3: 2 | V3: 2 | W3: 2
B5: Lp. | C5: Oznaczenie/numer umowy/rodzaj zadłużenia (np.. kredyt, pożyczka) | I5: Przedmiot/ cel umowy | J5: Rok zaciągnięcia zobowiązań | K5: Kwota zadłużenia | L5: Wykorzystanie środków obcych do finansowania kosztów operacji w okresie realizacji operacji.
L7: Rok poprzedni | M7: Rok bieżący | N7: ='Sekcja C5'!X5 -> 2014 | O7: ='Sekcja C5'!Y5 -> 2015 | P7: ='Sekcja C5'!Z5 -> 2016 | Q7: ='Sekcja C5'!AA5 -> 2017 | R7: ='Sekcja C5'!AB5 -> 2018
B9: 1 | K9: =SUM(L9,M9,N9,O9,P9,Q9,R9) -> 0
B10: 2 | K10: =SUM(L10,M10,N10,O10,P10,Q10,R10) -> 0
I11: Razem | K11: =SUM(K9:K10) -> 0 | L11: 0 | M11: 0 | N11: 0 | O11: 0 | P11: 0 | Q11: 0 | R11: 0
B12: Obsługa zadłużenia w kolejnych latach (kapitał + odsetki)
B13: Lp. | C13: Rok poprzedni | G13: Rok bieżący | I13: Rok | K13: =+I13 -> Rok | M13: =+K13 -> Rok | O13: =+M13 -> Rok | Q13: =+O13 -> Rok
I14: =N7 -> 2014 | K14: =O7 -> 2015 | M14: =P7 -> 2016 | O14: =Q7 -> 2017 | Q14: =R7 -> 2018
C15: Kapitał | E15: Odsetki | G15: Kapitał | H15: Odsetki | I15: Kapitał | J15: Odsetki | K15: Kapitał | L15: Odsetki | M15: Kapitał | N15: Odsetki | O15: Kapitał | P15: Odsetki | Q15: Kapitał | R15: Odsetki
B16: 1
B17: 2
B18: Razem | C18: =SUM(C16:C17) -> 0 | E18: =SUM(E16:E17) -> 0 | G18: =SUM(G16:G17) -> 0 | H18: 0 | I18: 0 | J18: 0 | K18: 0 | L18: 0 | M18: 0 | N18: 0 | O18: 0 | P18: 0 | Q18: 0 | R18: 0
B23: C-7.3 Leasing
B25: Lp. | C25: Oznaczenie/numer promesy leasingowej | G25: Przedmiot promesy (umowy) leasingowej | L25: Planowany rok zaciągnięcia zobowiązań | N25: Planowana kwota zadłużenia
B29: 1
B30: 2
B31: Razem | N31: =SUM(N29:N30) -> 0
B32: Obsługa zadłużenia w kolejnych latach (kapitał + odsetki)
B33: Lp. | C33: Rok bieżący | G33: Rok | I33: =+G33 -> Rok | K33: =+I33 -> Rok | M33: =+K33 -> Rok | O33: =+M33 -> Rok
G34: =N7 -> 2014 | I34: =O7 -> 2015 | K34: =P7 -> 2016 | M34: =Q7 -> 2017 | O34: =R7 -> 2018
C35: Kapitał | E35: Odsetki | G35: Kapitał | H35: Odsetki | I35: Kapitał | J35: Odsetki | K35: Kapitał | L35: Odsetki | M35: Kapitał | N35: Odsetki | O35: Kapitał | P35: Odsetki
B36: 1
B37: 2
B38: Razem | C38: =SUM(C36:C37) -> 0 | E38: =SUM(E36:E37) -> 0 | G38: =SUM(G36:G37) -> 0 | H38: 0 | I38: 0 | J38: 0 | K38: 0 | L38: 0 | M38: 0 | N38: 0 | O38: 0 | P38: 0

Sheet Sekcja D
B2: SEKCJA D. ZATRUDNIENIE
B4: D-1. Dotychczasowy stan zatrudnienia
B5: D.1.1. Średnia arytmetyczna stanu zatrudnienia z okresu ostatnich 12 miesięcy poprzedzających miesiąc złożenia wniosku o przyznanie pomocy (w przeliczeniu na pełne etaty)
B7: D.1.2. Stan zatrudnienia w miesiącu poprzedzającym miesiąc złożenia wniosku o przyznanie pomocy (w przeliczeniu na pełne etaty)
B8: D.1.3. Moment bazowy stanu zatrudnienia (w przeliczeniu na pełne etaty) max[D.1.1; D.1.2]. | R8: =MAX(R5:X7) -> 0
B9: D-2. Planowana liczba etatów utworzonych w wyniku realizacji operacji
B10: D.2.1. Liczba planowanych do utworzenia miejsc pracy w wyniku realizacji operacji (w przeliczeniu na pełne etaty)
B12: D-3. Planowany stan zatrudnienia
B13: D.3.1. Planowany docelowy stan zatrudnienia osiągnięty w wyniku realizacji operacji (w przeliczeniu na pełne etaty): (D1.3 + D.2.1) | R13: =R10+R8 -> 0
B14: D-4. Wyszczególnienie nowotworzonych miejsc pracy : należy podać nazwę stanowisk, uzasadnienie utworzenia stanowiska pracy oraz wymiar czasu pracy (np. 1, 1/2, ...)
B15: Stanowisko | F15: Nazwa stanowiska | K15: Uzasadnienie utworzenia stanowiska | X15: Wymiar czasu pracy
B16: Stanowisko 1
B17: Stanowisko 2
B18: Stanowisko 3
B19: Razem | X19: =SUM(X16:X18) -> 0

Sheet Sekcja E1
B3: SEKCJA E. ANALIZA EKONOMICZNO-FINANSOWA
B5: E-1. Bilans przedsiębiorstwa
B6: AKTYWA | O6: Stan na koniec roku poprzedzającego rok złożenia wniosku ( w zł) | T6: Stan na koniec roku docelowego (w zł)
B7: 1.1. MAJĄTEK TRWAŁY OGÓŁEM (A+B+C+D+E+F) | O7: =SUM(O8:O13) -> 0 | T7: =SUM(T8:T13) -> 0
B8: A) grunty
B9: B) budynki i budowle
B10: C) maszyny, urządzenia, wyposażenie
B11: D) inwestycje rozpoczęte
B12: E) udziały, akcje, obligacje, finansowy
B13: F) pozostały majątek trwały
B14: 1.2. MAJĄTEK OBROTOWY OGÓŁEM (G+H+I+J) | O14: =SUM(O15:O18) -> 0 | T14: =SUM(T15:T18) -> 0
B15: G) należności
B16: H) zapasy
B17: I) środki pieniężne ogółem
B18: J) pozostały majątek obrotowy
B19: AKTYWA OGÓŁEM | O19: =SUM(O7,O14) -> 0 | T19: =SUM(T7,T14) -> 0
B20: PASYWA | O20: Stan na koniec roku poprzedzającego rok złożenia wniosku | T20: Stan na koniec roku docelowego
B21: 1.3. Kapitał własny (wraz z zyskiem/stratą netto)
B22: 1.4 Kapitał obcy (K+L) | O22: =SUM(O23:O24) -> 0 | T22: =SUM(T23:T24) -> 0
B23: K) zobowiązania długoterminowe
B24: L) zobowiązania krótkoterminowe
B25: PASYWA OGÓŁEM | O25: =SUM(O21,O22) -> 0 | T25: =SUM(T21,T22) -> 0

Sheet Sekcja F
B2: SEKCJA F. PLANOWANE PRZYCHODY I KOSZTY ZWIĄZANE Z OPERACJĄ GENERUJĄCĄ PRZYCHODY/OSZCZĘDNOŚCI
B3: F-1. Prognoza przychodów w wyniku realizacji operacji generujących przychody/oszczędności
B4: Wyszczególnienie | G4: ='Sekcja C5'!W5 -> 2013 | H4: ='Sekcja C5'!X5 -> 2014 | I4: ='Sekcja C5'!Y5 -> 2015 | J4: ='Sekcja C5'!Z5 -> 2016 | K4: ='Sekcja C5'!AA5 -> 2017 | L4: ='Sekcja C5'!AB5 -> 2018
B5: Przychody | C5: Przychody ze sprzedaży produktów/usług/towarów | G5: 0 | H5: 0 | I5: 0 | J5: 0 | K5: 0 | L5: 0
C6: Pozostałe przychody
C7: Razem | G7: 0 | H7: 0 | I7: 0 | J7: 0 | K7: 0 | L7: 0
B8: F-2. Prognoza kosztów działalności objętej operacją generującą przychody/oszczędności
B9: Wyszczególnienie | G9: =G4 -> 2013 | H9: 2014 | I9: 2015 | J9: 2016 | K9: 2017 | L9: 2018
B10: *amortyzacja
B11: zużycie materiałów/surowców
B12: zakup towarów
B13: podatki i opłaty
B14: ubezpieczenia majątkowe
B15: koszty finansowe: odsetki od kredytów | G15: 0 | H15: 0 | I15: 0 | J15: 0 | K15: 0 | L15: 0
B16: koszty finansowe: odsetki leasingowe | G16: 0 | H16: 0 | I16: 0 | J16: 0 | K16: 0 | L16: 0
B17: pozostałe koszty finansowe
B18: paliwo
B19: usługi obce (w tym m.in. naprawy i konserwacje maszyn, budynków, energia el., opał, gaz, woda, ścieki, odpady, telekomunikacja)
B20: wynagrodzenia
B21: ubezpieczenia społeczne i inne świadczenia
B22: dzierżawy, czynsze i opłaty leasingowe
B23: pozostałe koszty
B24: Razem | G24: 0 | H24: 0 | I24: 0 | J24: 0 | K24: 0 | L24: 0

Sheet Sekcja G
A3: G. Zaktualizowana wartość netto
A4: Specyfikacja | B4: Rok poprzedni | D4: Rok bieżący | F4: ='Sekcja C5'!X5 -> 2014 | G4: ='Sekcja C5'!Y5 -> 2015 | H4: ='Sekcja C5'!Z5 -> 2016 | I4: ='Sekcja C5'!AA5 -> 2017 | J4: ='Sekcja C5'!AB5 -> 2018
B5: X | D5: No | F5: N1 | G5: N2 | H5: N3 | I5: N4 | J5: N5
A6: 1. Inwestycje dotyczące operacji | B6: 0 | D6: 0 | F6: 0 | G6: 0 | H6: 0 | I6: 0 | J6: 0
A7: 2. Przychody z operacji | B7: 0 | D7: ='Sekcja F'!G7 -> 0 | F7: ='Sekcja F'!H7 -> 0 | G7: ='Sekcja F'!I7 -> 0 | H7: ='Sekcja F'!J7 -> 0 | I7: ='Sekcja F'!K7 -> 0 | J7: ='Sekcja F'!L7 -> 0
A8: 3. Koszty działalności objętej operacją | B8: 0 | D8: ='Sekcja F'!G24 -> 0 | F8: ='Sekcja F'!H24 -> 0 | G8: ='Sekcja F'!I24 -> 0 | H8: ='Sekcja F'!J24 -> 0 | I8: ='Sekcja F'!K24 -> 0 | J8: ='Sekcja F'!L24 -> 0
A9: 4. Dochód brutto (poz.2-poz.3) | B9: =B7-B8 -> 0 | D9: =D7-D8 -> 0 | F9: =F7-F8 -> 0 | G9: =G7-G8 -> 0 | H9: =H7-H8 -> 0 | I9: =I7-I8 -> 0 | J9: =J7-J8 -> 0
A10: 5. Podatek dochodowy wg stopy 18%
A11: 6. Dochód netto (poz.4 - poz.5) | D11: =D9-D10 -> 0 | F11: =F9-F10 -> 0 | G11: =G9-G10 -> 0 | H11: =H9-H10 -> 0 | I11: =I9-I10 -> 0 | J11: =J9-J10 -> 0
A12: 7. Wartość końcowa | J12: ='Sekcja C5'!R11+'Sekcja C5'!R17+'Sekcja C6'!H21-SUM('Sekcja G'!D13:J13) -> 0
A13: 8.Amortyzacja | D13: ='Sekcja F'!G10 -> 0 | F13: ='Sekcja F'!H10 -> 0 | G13: ='Sekcja F'!I10 -> 0 | H13: ='Sekcja F'!J10 -> 0 | I13: ='Sekcja F'!K10 -> 0 | J13: ='Sekcja F'!L10 -> 0
A14: 9. Saldo bieżące (poz.6+poz.7+poz.8-poz.1) | D14: =D11+D13-D6 -> 0 | F14: =F11+F13-F6 -> 0 | G14: =G11+G13-G6 -> 0 | H14: =H11+H13-H6 -> 0 | I14: =I11+I13-I6 -> 0 | J14: =J11+J13+J12-J6 -> 0
A15: 10. Stopa dyskonta (……...%)/czynnik dyskontujący | B15: X | D15: 1 | F15: =1/(1+L16)^1 -> 0.9598771357 | G15: =1/(1+L16)^2 -> 0.9213641157 | H15: =1/(1+L16)^3 -> 0.8843963483 | I15: =1/(1+L16)^4 -> 0.8489118337 | J15: =1/(1+L16)^5 -> 0.8148510594
A16: *NPV | F16: =D14*D15+F14*F15+G14*G15+H14*H15+I14*I15+J14*J15 -> 0 | L16: 0.0418
A19: Objaśnienia do tabeli:
A20: Poz.1. Inwestycje dotyczące operacji - należy wpisać nakłady bezpośrednio związane z operacją z podziałem na poszczególne lata.
A21: Poz.2. Przychody ze sprzedaży to planowane przychody ze sprzedaży produktów, usług, materiałów i towarów - sekcja F-1.
A22: Poz.4. Dochód brutto to wartość sumy wierszy 2 i 3, przy czym wartość wiersza 3 jest wartością ujemną.
A23: Poz.5. Wysokość podatku dochodowego jest wyliczana zgodnie ze stawką %, którą wnioskodawca podaje w tym punkcie
A24: Poz.7. Wartość końcowa jest wykazywana jedynie dla roku docelowego jako suma kosztów kwalifikowalnych bez kosztów ogólnych oraz niekwalifikowalnych (towarzyszących), pomniejszonych o amortyzację (w przypadku wnioskodawców niedokonujących odpisów amortyzacyjnych, liczoną liniowo uśrednioną 8% stopą amortyzacji dla pełnych lat włącznie z rokiem poniesienia kosztu, przykład w instrukcji.
A25: Poz.8. Amortyzacja - wypełniają podmioty dokonujące odpisów amortyzacyjnych (zgodnie z sekcją F-2).
A26: Poz.10. Stopa dyskonta ( r ) - stała stopa z dnia złożenia Wniosku o dofinansowanie operacji.
A27: Zaktualizowana wartość netto (NPV) to suma zaktualizowanych wartości salda bieżącego dla wszystkich lat prognozy, wg poniższego wzoru:
E30: N1 | G30: N2 | I30: N5
A31: NPV = | C31: No + | E31: ----------- | F31: + | G31: ------------ | H31: …… + | I31: ------------ | J31: > 0
E32: 1 + r | G32: (1+r)2 | I32: (1+r)5

Sheet Sekcja H
B2: H. RACHUNEK PRZEPŁYWÓW PIENIĘŻNYCH OBEJMUJĄCY CAŁĄ DZIAŁALNOŚĆ PRZEDSIĘBIORSTWA
B3: Wyszczególnienie | M3: =P3-1 -> 2012 | P3: ='Sekcja C5'!W5 -> 2013 | S3: =P3+1 -> 2014 | V3: =S3+1 -> 2015 | Y3: =V3+1 -> 2016 | AB3: =Y3+1 -> 2017 | AE3: =AB3+1 -> 2018
B4: I. Wpływy :
B5: 1. Sprzedaż produktów, towarów i usług
B6: 2. Inne wpływy
B7: 3. Zwrot podatku VAT
B8: I. Wpływy ogółem [I.1+I.2+I.3] | M8: =SUM(M5:O7) -> 0 | P8: =SUM(P5:R7) -> 0 | S8: =SUM(S5:U7) -> 0 | V8: =SUM(V5:X7) -> 0 | Y8: =SUM(Y5:AA7) -> 0 | AB8: =SUM(AB5:AD7) -> 0 | AE8: =SUM(AE5:AG7) -> 0
B9: II. Wydatki :
B10: 1. Zakup surowców, materiałów/towarów
B11: 2. Wynagrodzenia pracowników
B12: 3. Narzuty na wynagrodzenie dla pracowników
B13: 4. Naprawa, konserwacja maszyn i budynków
B14: 5. Paliwa
B15: 6. Energia elektryczna, opał i gaz
B17: 7. Woda i ścieki, wywóz odpadów
B19: 8. Usługi obce
B20: 9. Telekomunikacja
B21: 10. Dzierżawy, czynsze i opłaty leasingowe
B23: 11. Ubezpieczenia majątkowe
B24: 12. Inne podatki i opłaty (gruntowy, opłaty drogowe,..)
B25: 13. Odprowadzenie podatku VAT
B26: 14. Inne wydatki
B27: II. Razem wydatki [II.1+II.2+...+II.14] | M27: =SUM(M10:O26) -> 0 | P27: =SUM(P10:R26) -> 0 | S27: =SUM(S10:U26) -> 0 | V27: =SUM(V10:X26) -> 0 | Y27: =SUM(Y10:AA26) -> 0 | AB27: =SUM(AB10:AD26) -> 0 | AE27: =SUM(AE10:AG26) -> 0
B28: III. Przepływy kapitałowe
B29: 1. Zaciągnięte kredyty
B30: 2. Sprzedaż majątku trwałego
B31: 3. Spłaty kredytów
B32: 4. Wydatki inwestycyjne
B33: 5. Wypłata dywidendy
B34: 6. Wpływy z posiadanych udziałów, akcji, obligacji
B35: 7. Podatek dochodowy
B36: III. Przepływy kapitałowe [III.1+III.2-III.3-III.4-III.5+III.6-III.7] | M36: =M29+M30-M31-M32-M33+M34-M35 -> 0 | P36: =P29+P30-P31-P32-P33+P34-P35 -> 0 | S36: =S29+S30-S31-S32-S33+S34-S35 -> 0 | V36: =V29+V30-V31-V32-V33+V34-V35 -> 0 | Y36: =Y29+Y30-Y31-Y32-Y33+Y34-Y35 -> 0 | AB36: =AB29+AB30-AB31-AB32-AB33+AB34-AB35 -> 0 | AE36: =AE29+AE30-AE31-AE32-AE33+AE34-AE35 -> 0
B37: IV. Kwota dotacji
B38: V. PRZEPŁYWY NETTO [I-II+III+IV] | M38: =M8-M27+M36+M37 -> 0 | P38: =P8-P27+P36+P37 -> 0 | S38: =S8-S27+S36+S37 -> 0 | V38: =V8-V27+V36+V37 -> 0 | Y38: =Y8-Y27+Y36+Y37 -> 0 | AB38: =AB8-AB27+AB36+AB37 -> 0 | AE38: =AE8-AE27+AE36+AE37 -> 0
B39: VI. Bilans gotówki : stan początkowy | P39: =M40 -> 0 | S39: =P40 -> 0 | V39: =S40 -> 0 | Y39: =V40 -> 0 | AB39: =Y40 -> 0 | AE39: =AB40 -> 0
B40: stan końcowy [V+VI.] | M40: =M39+M38 -> 0 | P40: =P39+P38 -> 0 | S40: =S39+S38 -> 0 | V40: =V39+V38 -> 0 | Y40: =Y39+Y38 -> 0 | AB40: =AB39+AB38 -> 0 | AE40: =AE39+AE38 -> 0
B46: Miejscowość i data | Q46: Podpis osoby upoważnionej

Sheet Zalacznik nr 1
B2: ZAŁĄCZNIK NR 1 - SEKCJA FI PLANOWANE PRZYCHODY I KOSZTY ZWIĄZANE Z OPERACJĄ OPARTĄ NA ROZWIĄZANIU OSZCZĘDNOŚCIOWYM
B3: F-1. Prognoza przychodów w wyniku realizacji operacji o charakterze oszczędnościowym
B4: Wyszczególnienie | G4: ='Sekcja C5'!W5 -> 2013 | H4: ='Sekcja C5'!X5 -> 2014 | I4: ='Sekcja C5'!Y5 -> 2015 | J4: ='Sekcja C5'!Z5 -> 2016 | K4: ='Sekcja C5'!AA5 -> 2017 | L4: ='Sekcja C5'!AB5 -> 2018
B5: Przychody | C5: Przychody ze sprzedaży produktów/usług/towarów | G5: =IF(G4>2000,'Sekcja C4'!O11,"") -> 0 | H5: =IF(H4>2000,'Sekcja C4'!U11,"") -> 0 | I5: =IF(I4>2000,'Sekcja C4'!AA11,"") -> 0 | J5: =IF(J4>2000,'Sekcja C4'!O24,"") -> 0 | K5: =IF(K4>2000,'Sekcja C4'!U24,"") -> 0 | L5: =IF(L4>2000,'Sekcja C4'!AA24,"") -> 0
C6: Pozostałe przychody
C7: Razem | G7: =SUM(G5,G6) -> 0 | H7: 0 | I7: 0 | J7: 0 | K7: 0 | L7: 0
B8: F-2. Prognoza kosztów działalności objętej operacją o charakterze oszczędnościowym
B9: Wyszczególnienie | G9: =G4 -> 2013 | H9: 2014 | I9: 2015 | J9: 2016 | K9: 2017 | L9: 2018
B10: *amortyzacja
B11: zużycie materiałów/surowców
B12: zakup towarów
B13: podatki i opłaty
B14: ubezpieczenia majątkowe
B15: koszty finansowe: odsetki od kredytów | G15: ='Sekcja C7.2 i C7.3'!H18 -> 0 | H15: ='Sekcja C7.2 i C7.3'!J18 -> 0 | I15: ='Sekcja C7.2 i C7.3'!L18 -> 0 | J15: ='Sekcja C7.2 i C7.3'!N18 -> 0 | K15: ='Sekcja C7.2 i C7.3'!P18 -> 0 | L15: ='Sekcja C7.2 i C7.3'!R18 -> 0
B16: koszty finansowe: odsetki leasingowe | G16: ='Sekcja C7.2 i C7.3'!E38 -> 0 | H16: ='Sekcja C7.2 i C7.3'!H38 -> 0 | I16: ='Sekcja C7.2 i C7.3'!J38 -> 0 | J16: ='Sekcja C7.2 i C7.3'!L38 -> 0 | K16: ='Sekcja C7.2 i C7.3'!N38 -> 0 | L16: ='Sekcja C7.2 i C7.3'!P38 -> 0
B17: pozostałe koszty finansowe
B18: paliwo
B19: usługi obce (w tym m.in. naprawy i konerwacje maszyn, budynków, energia el., opał, gaz, woda, ścieki, odpady, telekomunikacja)
B20: wynagrodzenia
B21: ubezpieczenia społeczne i inne majątkowe
B22: dzieżawy, czynsze i opłaty leasingowe
B23: pozostałe koszty
B24: Razem | G24: =SUM(G10:G23) -> 0 | H24: 0 | I24: 0 | J24: 0 | K24: 0 | L24: 0

Sheet Zalacznik nr 2
B2: ZAŁĄCZNIK NR 2 - SEKCJA FII PLANOWANE PRZYCHODY I KOSZTY OPARTE NA OBECNYCH ROZWIĄZANIACH
B3: F-1. Prognoza przychodów oparta ne obecnych rozwiązaniach
B4: Wyszczególnienie | G4: ='Sekcja C5'!W5 -> 2013 | H4: ='Sekcja C5'!X5 -> 2014 | I4: ='Sekcja C5'!Y5 -> 2015 | J4: ='Sekcja C5'!Z5 -> 2016 | K4: ='Sekcja C5'!AA5 -> 2017 | L4: ='Sekcja C5'!AB5 -> 2018
B5: Przychody | C5: Przychody ze sprzedaży produktów/usług/towarów
C6: Pozostałe przychody
C7: Razem | G7: =SUM(G5,G6) -> 0 | H7: 0 | I7: 0 | J7: 0 | K7: 0 | L7: 0
B8: F-2. Prognoza kosztów działalności oparta na dotychczasowych rozwiązaniach
B9: Wyszczególnienie | G9: =G4 -> 2013 | H9: 2014 | I9: 2015 | J9: 2016 | K9: 2017 | L9: 2018
B10: *amortyzacja
B11: zużycie materiałów/surowców
B12: zakup towarów
B13: podatki i opłaty
B14: ubezpieczenia majątkowe
B15: koszty finansowe: odsetki od kredytów
B16: koszty finansowe: odsetki leasingowe
B17: pozostałe odsetki finansowe
B18: paliwo
B19: usługi obce (w tym m.in. naprawy i konserwacje maszyn, budynków, energia el., opał, gaz, woda, ścieki, odpady, telekomunikacja)
B20: wynagrodzenia
B21: ubezpieczenia społeczne i inne świadczenia
B22: dzierżawy, czynsze i olaty leasingowe
B23: pozostałe koszty
B24: Razem | G24: =SUM(G10:G23) -> 0 | H24: 0 | I24: 0 | J24: 0 | K24: 0 | L24: 0
